fUSD/lending_fUSD_20251118
["ID","MTS","AMOUNT","RATE_DAILY","PERIOD"]
[394372127,1763503838863,-500.0,0.00041643,2]
[394372128,1763503838873,-300.0,0.00041643,2]
[394372129,1763503838883,-300.0,0.00041663,2]
[394372130,1763503838893,-1000.0,0.00041674,14]
[394372131,1763503838902,-1000.0,0.00041677,14]
[394372132,1763503838912,-1000.0,0.00041688,14]
[394372133,1763503838922,-300.0,0.00041693,2]
[394372134,1763503838931,-1003.25121953,0.00041696,14]
[394372135,1763503838942,-500.0,0.00041699,2]
[394372136,1763503838951,-175.17,0.000417,60]
[394372137,1763503838960,-216.0,0.000417,30]
[394372138,1763503838970,-423.23507377,0.000417,30]
[394372139,1763503838980,-185.28,0.000417,46]
[394372140,1763503838990,-196.78421099,0.000417,120]
[394372141,1763503838999,-193.4806984,0.000417,120]
[394372142,1763503839010,-237.06579526,0.000417,120]
[394372143,1763503839020,-182.57104162,0.000417,120]
[394372144,1763503839030,-282.86113655,0.000417,10]
[394372145,1763503839040,-1000.0,0.000417,7]
[394372146,1763503839050,-1000.0,0.00041713,14]
[394372147,1763503839059,-996.74878047,0.00041713,14]
[394372148,1763503839070,-1000.0,0.00041721,14]
[394372149,1763503839080,-150.0,0.00041721,14]
[394372150,1763503839091,-215.82459157,0.00041725,7]
[394372151,1763503839101,-215.82459157,0.00041725,7]
[394372152,1763503839111,-150.42,0.00041725,2]
[394372153,1763503839121,-150.42,0.00041725,2]
[394372154,1763503839131,-150.42,0.00041725,2]
[394372155,1763503839141,-150.42,0.00041725,2]
[394372156,1763503839151,-150.42,0.00041725,2]
[394372157,1763503839161,-150.42,0.00041725,2]
[394372158,1763503839171,-150.42,0.00041725,2]
[394372159,1763503839182,-150.0,0.00041731,14]
[394372160,1763503839193,-300.0,0.00041731,2]
[394372161,1763503839203,-167341.784212,0.00041733,2]
[394372162,1763503839213,-257.060198,0.00041733,120]
[394372163,1763503839224,-151.0,0.00041733,120]
[394372164,1763503839238,-152.937792,0.00041733,120]
[394372165,1763503839248,-154.139668,0.00041733,120]
[394372166,1763503839258,-151.0,0.00041735,120]
[394372167,1763503839270,-156.184137,0.00041735,120]
[394372168,1763503839280,-151.0,0.00041735,120]
[394372169,1763503839290,-151.0,0.00041735,120]
[394372170,1763503839301,-151.0,0.00041735,120]
[394372171,1763503839310,-151.0,0.00041735,120]
[394372172,1763503839320,-151.0,0.00041735,120]
[394372173,1763503839330,-151.0,0.00041735,120]
[394372174,1763503839340,-151.0,0.00041735,120]
[394372175,1763503839350,-151.0,0.00041735,120]
[394372176,1763503839359,-151.0,0.00041735,120]
[394372177,1763503839370,-151.0,0.00041735,120]
[394372178,1763503839379,-151.0,0.00041735,120]
[394372179,1763503839389,-225.864176,0.00041735,120]
[394372180,1763503839398,-151.0,0.00041735,120]
[394372181,1763503839408,-151.0,0.00041735,120]
[394372182,1763503839418,-254.356668,0.00041735,120]
[394372183,1763503839427,-151.0,0.00041735,120]
[394372184,1763503839437,-151.0,0.00041735,120]
[394372185,1763503839447,-151.0,0.00041735,120]
[394372186,1763503839456,-151.0,0.00041735,120]
[394372187,1763503839466,-238.283026,0.00041735,120]
[394372188,1763503839476,-151.0,0.00041735,30]
[394372189,1763503839487,-151.0,0.00041735,120]
[394372190,1763503839496,-1200.0,0.00041735,30]
[394372191,1763503839506,-151.0,0.00041735,120]
[394372192,1763503839516,-151.0,0.00041735,120]
[394372193,1763503839525,-151.0,0.00041735,120]
[394372194,1763503839535,-846.18330199,0.00041735,27]
[394372195,1763503839545,-651341.76411688,0.00041735,7]
[394372196,1763503839555,-255.46754685,0.00041735,2]
[394372197,1763503839566,-185.43343144,0.00041735,2]
[394372198,1763503839576,-397.69227717,0.00041735,2]
[394372199,1763503839585,-1210.0,0.00041735,2]
[394372200,1763503839596,-714.99989121,0.00041735,2]
[394372201,1763503839606,-368.17404263,0.00041735,2]
[394372202,1763503839615,-354.26409959,0.00041735,2]
[394372203,1763503839625,-1294.12084728,0.00041735,2]
[394372204,1763503839635,-2832.16216796,0.00041735,2]
[394372205,1763503839644,-1546.3220001,0.00041735,2]
[394372206,1763503839653,-1047.22860377,0.00041735,2]
[394372207,1763503839663,-5274.9491781,0.00041735,2]
[394372208,1763503839673,-352.63376442,0.00041735,2]
[394372210,1763503839683,-2496.91168955,0.00041735,2]
[394372211,1763503839692,-2749.43891583,0.00041735,2]
[394372213,1763503839702,-153.87993159,0.00041735,2]
[394372215,1763503839711,-1705.93651086,0.00041735,2]
[394372217,1763503839720,-253.37605228,0.00041735,2]
[394372219,1763503839730,-500.0,0.00041735,2]
[394372220,1763503839739,-1282.78632183,0.00041735,2]
[394372222,1763503839749,-247.71447527,0.00041735,2]
[394372224,1763503839759,-1059.28506412,0.00041735,2]
[394372226,1763503839768,-554.54017597,0.00041735,2]
[394372227,1763503839778,-9388.69381487,0.00041735,2]
[394372228,1763503839787,-1333.87127853,0.00041735,2]
[394372229,1763503839797,-3477.50118662,0.00041735,2]
[394372231,1763503839806,-2233.32367572,0.00041735,2]
[394372233,1763503839816,-760.20300152,0.00041735,2]
[394372235,1763503839825,-1951.99204273,0.00041735,2]
[394372237,1763503839835,-187.16221514,0.00041735,2]
[394372239,1763503839847,-643.0,0.00041735,2]
[394372241,1763503839857,-986.94894816,0.00041735,2]
[394372243,1763503839866,-582.7055053,0.00041735,2]
[394372244,1763503839876,-1866.32242401,0.00041735,2]
[394372246,1763503839886,-3295.10363039,0.00041735,2]
[394372248,1763503839895,-178.32185191,0.00041735,2]
[394372250,1763503839905,-7392.31487048,0.00041735,2]
[394372252,1763503839916,-550.0,0.00041735,2]
[394372254,1763503839925,-1025.47408607,0.00041735,2]
[394372256,1763503839934,-1952882.52596251,0.00041735,7]
[394372259,1763503839987,-494.42901379,0.00041209,15]
[394372260,1763503839999,-929.5656201,0.00041209,15]
[394372261,1763503840011,-1730.84596,0.00041209,15]
[394372262,1763503840022,-335.71850004,0.00041209,15]
[394372263,1763503840033,-812.81808665,0.00041209,15]
[394372264,1763503840043,-3831.82191335,0.00041735,7]
[394372265,1763503840054,-15653911.5770282,0.00041735,7]
[394372278,1763503842775,-1313.02,0.00041735,7]
[394372279,1763503842787,-1161.0,0.00041735,7]
[394372280,1763503843067,-2202.38503337,0.00041735,7]
[394372281,1763503843083,-3952.7983,0.00041735,7]
[394372282,1763503843096,-3839.24112743,0.00041735,7]
[394372283,1763503843108,-478.87583448,0.00041735,7]
[394372284,1763503843123,-1773.36298609,0.00041735,7]
[394372286,1763503845725,-4303.37718058,0.00041294,15]
[394372287,1763503845735,-848.48281942,0.00041735,7]
[394372288,1763503845747,-1038.14195681,0.00041735,7]
[394372289,1763503845759,-332180.89878933,0.00041735,7]
[394372290,1763503845988,-738.4500015,0.00041735,7]
[394372291,1763503846001,-1893.12,0.00041735,7]
[394372292,1763503846012,-616.61600268,0.00041735,7]
[394372293,1763503846023,-52529.1507213,0.00041735,7]
[394372294,1763503846035,-6835.079504,0.00041735,7]
[394372323,1763503915748,500.0,0.00041735,120]
[394372324,1763503929227,500.0,0.00041735,120]
[394372325,1763503929847,500.0,0.00041735,120]
[394372326,1763503930475,500.0,0.00041735,120]
[394372327,1763503991246,312.0,0.00041735,120]
[394372332,1763504473750,406.31,0.00017012,2]
[394372336,1763504544750,537.82,0.00013699,2]
[394372344,1763504874051,73414.46395838,0.00017,2]
[394372345,1763504874079,1000.0,0.00017,2]
[394372346,1763504916133,1339.42119443,0.00041738,30]
[394372365,1763505031793,-468.85529194,0.00016873,2]
[394372366,1763505031803,-28.9109795,0.00016973,2]
[394372369,1763505031862,-471.0890205,0.00016973,2]
[394372370,1763505031872,-500.0,0.00016973,2]
[394372371,1763505031882,-500.0,0.00016973,2]
[394372372,1763505031895,-627.58559871,0.00016973,2]
[394372373,1763505031905,-504.48907422,0.00016973,2]
[394372374,1763505031923,-500.0,0.00016973,2]
[394372375,1763505031937,-500.0,0.00016973,2]
[394372376,1763505031948,-500.0,0.00016973,2]
[394372377,1763505031957,-167.69971827,0.00016973,2]
[394372378,1763505031967,-500.0,0.00016973,2]
[394372379,1763505031977,-500.88609333,0.00016973,2]
[394372380,1763505031987,-235.61531027,0.00016973,2]
[394372381,1763505032000,-264.38468973,0.00016973,2]
[394372382,1763505032010,-500.0,0.00016973,2]
[394372383,1763505032020,-500.0,0.00016973,2]
[394372384,1763505032029,-500.0,0.00016973,2]
[394372385,1763505032040,-804.08385276,0.0001699,2]
[394372386,1763505032051,-804.08385276,0.0001699,2]
[394372387,1763505032060,-697.81163355,0.0001699,2]
[394372388,1763505032072,-106.27221921,0.0001699,2]
[394372389,1763505032083,-1200.0,0.00016998,2]
[394372390,1763505032092,-300.0,0.00016998,2]
[394372391,1763505032102,-550.0,0.00016998,2]
[394372392,1763505032112,-300.0,0.00016999,2]
[394372393,1763505032122,-250.0,0.00016999,2]
[394372394,1763505032132,-300.0,0.00016999,2]
[394372396,1763505032145,-500.0,0.00016999,2]
[394372398,1763505032155,-500.0,0.00016999,2]
[394372400,1763505032165,-282.28439801,0.00016999,2]
[394372402,1763505032175,-500.0,0.00016999,2]
[394372404,1763505032186,-500.0,0.00016999,2]
[394372406,1763505032195,-500.0,0.00016999,2]
[394372408,1763505032205,-610.55442098,0.00016999,2]
[394372410,1763505032215,-500.0,0.00016999,2]
[394372412,1763505032224,-329.72147912,0.00016999,2]
[394372414,1763505032234,-184.64327252,0.00016999,2]
[394372416,1763505032243,-775.34166101,0.00016999,2]
[394372418,1763505032253,-631.9665273,0.00016999,2]
[394372420,1763505032263,-500.0,0.00016999,2]
[394372421,1763505032278,-262.36450666,0.00016999,2]
[394372422,1763505032288,-500.0,0.00016999,2]
[394372423,1763505032297,-775.34166101,0.00016999,2]
[394372424,1763505032308,-500.0,0.00016999,2]
[394372425,1763505032317,-775.34166101,0.00016999,2]
[394372426,1763505032327,-270.00732992,0.00016999,2]
[394372427,1763505032338,-500.0,0.00016999,2]
[394372428,1763505032347,-775.34166101,0.00016999,2]
[394372429,1763505032357,-500.0,0.00016999,2]
[394372430,1763505032368,-775.34166101,0.00016999,2]
[394372431,1763505032378,-539.44765635,0.00016999,2]
[394372432,1763505032393,-235.89400466,0.00016999,2]
[394372433,1763505032403,-373.97762302,0.00016999,2]
[394372434,1763505032415,-126.02237698,0.00016999,2]
[394372435,1763505032425,-675.77177721,0.00016999,2]
[394372436,1763505032441,-99.5698838,0.00016999,2]
[394372437,1763505032451,-775.34166101,0.00016999,2]
[394372438,1763505032460,-775.34166101,0.00016999,2]
[394372439,1763505032471,-775.34166101,0.00016999,2]
[394372440,1763505032480,-775.34166101,0.00016999,2]
[394372441,1763505032489,-775.34166101,0.00016999,2]
[394372442,1763505032499,-775.34166101,0.00016999,2]
[394372443,1763505032509,-775.34166101,0.00016999,2]
[394372444,1763505032519,-775.34166101,0.00016999,2]
[394372445,1763505032530,-775.34166101,0.00016999,2]
[394372446,1763505032540,-775.34166101,0.00016999,2]
[394372447,1763505032550,-775.34166101,0.00016999,2]
[394372448,1763505032560,-775.34166101,0.00016999,2]
[394372449,1763505032570,-775.34166101,0.00016999,2]
[394372450,1763505032580,-775.34166101,0.00016999,2]
[394372451,1763505032590,-775.34166101,0.00016999,2]
[394372452,1763505032601,-775.34166101,0.00016999,2]
[394372453,1763505032613,-775.34166101,0.00016999,2]
[394372454,1763505032623,-775.34166101,0.00016999,2]
[394372455,1763505032633,-775.34166101,0.00016999,2]
[394372456,1763505032652,-775.34166101,0.00016999,2]
[394372457,1763505032663,-775.34166101,0.00016999,2]
[394372458,1763505032674,-775.34166101,0.00016999,2]
[394372459,1763505032684,-775.34166101,0.00016999,2]
[394372460,1763505032695,-775.34166101,0.00016999,2]
[394372461,1763505032705,-775.34166101,0.00016999,2]
[394372462,1763505032715,-775.34166101,0.00016999,2]
[394372463,1763505032725,-775.34166101,0.00016999,2]
[394372464,1763505032736,-775.34166101,0.00016999,2]
[394372465,1763505032746,-775.34166101,0.00016999,2]
[394372466,1763505032756,-775.34166101,0.00016999,2]
[394372467,1763505032766,-775.34166101,0.00016999,2]
[394372468,1763505032776,-775.34166101,0.00016999,2]
[394372469,1763505032785,-1049.84065148,0.00016999,2]
[394372470,1763505032795,-1049.84065148,0.00016999,2]
[394372471,1763505032806,-1049.84065148,0.00016999,2]
[394372472,1763505032815,-1049.84065148,0.00016999,2]
[394372473,1763505032825,-1049.84065148,0.00016999,2]
[394372474,1763505032835,-1049.84065148,0.00016999,2]
[394372475,1763505032845,-1049.84065148,0.00016999,2]
[394372476,1763505032855,-1049.84065148,0.00016999,2]
[394372477,1763505032865,-1049.84065148,0.00016999,2]
[394372478,1763505032875,-1049.84065148,0.00016999,2]
[394372479,1763505032885,-1049.84065148,0.00016999,2]
[394372480,1763505032896,-1049.84065148,0.00016999,2]
[394372481,1763505032906,-1049.84065148,0.00016999,2]
[394372482,1763505032916,-1049.84065148,0.00016999,2]
[394372483,1763505032926,-1049.84065148,0.00016999,2]
[394372484,1763505032936,-1049.84065148,0.00016999,2]
[394372485,1763505032946,-937.30702982,0.00016999,2]
[394372486,1763505032960,-112.53362166,0.00016999,2]
[394372487,1763505032970,-1049.84065148,0.00016999,2]
[394372488,1763505032979,-1049.84065148,0.00016999,2]
[394372489,1763505032990,-1049.84065148,0.00016999,2]
[394372490,1763505033004,-1049.84065148,0.00016999,2]
[394372491,1763505033014,-1049.84065148,0.00016999,2]
[394372492,1763505033023,-1049.84065148,0.00016999,2]
[394372493,1763505033033,-1049.84065148,0.00016999,2]
[394372494,1763505033043,-1049.84065148,0.00016999,2]
[394372495,1763505033052,-1049.84065148,0.00016999,2]
[394372496,1763505033062,-1049.84065148,0.00016999,2]
[394372497,1763505033071,-1049.84065148,0.00016999,2]
[394372498,1763505033080,-1049.84065148,0.00016999,2]
[394372499,1763505033091,-1049.84065148,0.00016999,2]
[394372500,1763505033101,-1049.84065148,0.00016999,2]
[394372501,1763505033110,-1049.84065148,0.00016999,2]
[394372502,1763505033120,-1049.84065148,0.00016999,2]
[394372503,1763505033130,-1049.84065148,0.00016999,2]
[394372504,1763505033142,-227.46288222,0.00016999,2]
[394372505,1763505033152,-157.32755515,0.00016999,2]
[394372506,1763505033161,-250.6160495,0.00016999,2]
[394372507,1763505033171,-1310.60812651,0.00016999,2]
[394372508,1763505033180,-1310.60812651,0.00016999,2]
[394372509,1763505033190,-1310.60812651,0.00016999,2]
[394372510,1763505033203,-1310.60812651,0.00016999,2]
[394372511,1763505033212,-1310.60812651,0.00016999,2]
[394372512,1763505033222,-1310.60812651,0.00016999,2]
[394372513,1763505033232,-1310.60812651,0.00016999,2]
[394372514,1763505033242,-1310.60812651,0.00016999,2]
[394372515,1763505033252,-1310.60812651,0.00016999,2]
[394372516,1763505033262,-1310.60812651,0.00016999,2]
[394372517,1763505033272,-1310.60812651,0.00016999,2]
[394372518,1763505033281,-1310.60812651,0.00016999,2]
[394372519,1763505033291,-1310.60812651,0.00016999,2]
[394372520,1763505033301,-590.13117458,0.00016999,2]
[394372521,1763505033314,-720.47695193,0.00016999,2]
[394372522,1763505033324,-1310.60812651,0.00016999,2]
[394372523,1763505033334,-196.37709342,0.00016999,2]
[394372524,1763505033344,-38607.45845684,0.00017,2]
[394372525,1763505033356,-530481.96260287,0.00017,2]
[394372527,1763505037860,-468.85529191,0.00016878,2]
[394372528,1763505037871,-285.17473031,0.00017,2]
[394372529,1763505037883,-6946432.00450436,0.00017,2]
[394372530,1763505037894,-668.23235549,0.00017002,2]
[394372531,1763505037905,-1859.92670822,0.00017102,2]
[394372532,1763505037915,-59994.37363049,0.00017202,2]
[394372533,1763505037925,-5895.32116251,0.00017202,2]
[394372534,1763505037935,-300.0,0.00017302,2]
[394372535,1763505037944,-250.0,0.00017302,2]
[394372536,1763505037955,-1000.0,0.00017521,2]
[394372537,1763505037964,-1097.05199518,0.00017521,2]
[394372538,1763505037974,-501.87365056,0.00017521,2]
[394372539,1763505037983,-1000.0,0.00017521,2]
[394372540,1763505037994,-1000.0,0.00017521,2]
[394372541,1763505038005,-1000.0,0.00017521,2]
[394372542,1763505038014,-500.0,0.00017521,2]
[394372543,1763505038024,-1000.0,0.00017521,2]
[394372544,1763505038034,-206.06883013,0.00017521,2]
[394372545,1763505038043,-406.31,0.00017907,2]
[394372546,1763505038053,-34048.70616785,0.00018032,2]
[394372547,1763505038063,-1260.22802213,0.00018068,2]
[394372548,1763505038073,-504.65985304,0.00018068,2]
[394372549,1763505038083,-1500.0,0.00018068,2]
[394372551,1763505038093,-1094.35672042,0.00018068,2]
[394372553,1763505038102,-1010.75841668,0.00018068,2]
[394372555,1763505038113,-935.0,0.00018103,2]
[394372557,1763505038123,-420.0,0.00018566,2]
[394372559,1763505038132,-300.0,0.00018589,2]
[394372561,1763505038142,-1675.88462383,0.00018616,2]
[394372563,1763505038152,-1680.0,0.00018658,2]
[394372564,1763505038162,-150.73022228,0.0001867,2]
[394372566,1763505038172,-195.0,0.0001867,2]
[394372568,1763505038182,-2500.0,0.00018698,2]
[394372570,1763505038194,-300.0,0.00018698,2]
[394372571,1763505038203,-195.0,0.00018698,2]
[394372573,1763505038213,-250.0,0.00018698,2]
[394372574,1763505038223,-150.42,0.000188,2]
[394372576,1763505038234,-150.42,0.000188,2]
[394372578,1763505038244,-150.42,0.000188,2]
[394372579,1763505038253,-150.42,0.000188,2]
[394372581,1763505038264,-150.42,0.000188,2]
[394372582,1763505038274,-150.42,0.000188,2]
[394372584,1763505038284,-150.42,0.000188,2]
[394372586,1763505038293,-150.42,0.000188,2]
[394372588,1763505038303,-150.42,0.000188,2]
[394372589,1763505038312,-150.42,0.000188,2]
[394372590,1763505038322,-150.42,0.000188,2]
[394372591,1763505038331,-150.42,0.000188,2]
[394372592,1763505038340,-150.42,0.000188,2]
[394372593,1763505038349,-150.42,0.000188,2]
[394372594,1763505038359,-150.42,0.000188,2]
[394372595,1763505038369,-150.42,0.000188,2]
[394372596,1763505038378,-150.42,0.000188,2]
[394372597,1763505038387,-150.42,0.000188,2]
[394372598,1763505038398,-150.42,0.000188,2]
[394372599,1763505038407,-150.42,0.000188,2]
[394372600,1763505038417,-150.42,0.000188,2]
[394372601,1763505038426,-150.42,0.000188,2]
[394372602,1763505038436,-150.42,0.000188,2]
[394372603,1763505038445,-406.31,0.00018802,2]
[394372604,1763505038454,-500.74682065,0.000192,2]
[394372605,1763505038465,-500.0,0.000192,2]
[394372606,1763505038475,-500.0,0.000192,2]
[394372607,1763505038484,-466.35957159,0.000192,2]
[394372608,1763505038493,-501.08472156,0.000192,2]
[394372609,1763505038503,-500.0,0.000192,2]
[394372610,1763505038512,-500.0,0.000192,2]
[394372611,1763505038522,-500.0,0.000192,2]
[394372612,1763505038532,-500.0,0.000192,2]
[394372613,1763505038542,-300.0,0.00019276,2]
[394372614,1763505038552,-1200.0,0.00019697,2]
[394372615,1763505038562,-406.31,0.00019698,2]
[394372616,1763505038573,-300.0,0.00019698,2]
[394372617,1763505038582,-193.70507279,0.00019698,2]
[394372618,1763505038593,-150.15956751,0.00019698,2]
[394372619,1763505038602,-2500.0,0.00019698,2]
[394372620,1763505038614,-300.0,0.00019698,2]
[394372621,1763505038624,-300.0,0.00019698,2]
[394372622,1763505038634,-1002.99102467,0.00019748,2]
[394372623,1763505038644,-1000.0,0.00019748,2]
[394372624,1763505038655,-1000.0,0.00019748,2]
[394372625,1763505038665,-1007.2530192,0.00019748,2]
[394372626,1763505038675,-1008.65666473,0.00019748,2]
[394372627,1763505038685,-1413.78256671,0.0002,14]
[394372628,1763505038696,-537.82,0.00020187,2]
[394372629,1763505038705,-434.0,0.00020278,2]
[394372630,1763505038715,-502.98988778,0.00020296,2]
[394372631,1763505038725,-2351.0,0.0002048,2]
[394372632,1763505038735,-668.23235542,0.00020521,2]
[394372633,1763505038744,-406.31,0.00020593,2]
[394372634,1763505038754,-610.0,0.00021011,2]
[394372635,1763505038764,-479.06402154,0.00021263,2]
[394372636,1763505038774,-1680.0,0.00021454,2]
[394372637,1763505038784,-406.31,0.00021488,2]
[394372638,1763505038794,-500.0,0.00021587,2]
[394372639,1763505038804,-406.31,0.00022384,2]
[394372640,1763505038814,-3820.68,0.000224,7]
[394372641,1763505038823,-3292.0,0.0002248,2]
[394372642,1763505038834,-406.31,0.00023279,2]
[394372643,1763505038843,-1132.0,0.00023368,2]
[394372644,1763505038853,-500.0,0.0002355,2]
[394372645,1763505038863,-500.0,0.000237,2]
[394372646,1763505038873,-322.46058965,0.000237,2]
[394372647,1763505038882,-668.23235542,0.0002404,2]
[394372648,1763505038892,-196.23949712,0.00024098,2]
[394372649,1763505038901,-406.31,0.00024174,2]
[394372650,1763505039058,-166.07834876,0.0002465,2]
[394372651,1763505039107,-4609.0,0.00024675,2]
[394372652,1763505039117,-300.0,0.00024799,10]
[394372653,1763505039127,-284371.348198,0.000248,3]
[394372654,1763505039137,-368.19186078,0.00024899,10]
[394372655,1763505039148,-422001.588094,0.000249,3]
[394372656,1763505039157,-1000.0,0.00024955,2]
[394372657,1763505039167,-406.31,0.0002507,2]
[394372658,1763505039177,-1000.0,0.00025891,2]
[394372659,1763505039187,-406.31,0.00025965,2]
[394372660,1763505039197,-638.7613927,0.000262,2]
[394372661,1763505039207,-500.0,0.000262,2]
[394372662,1763505039217,-500.0,0.000262,2]
[394372663,1763505039227,-161.1708607,0.000262,2]
[394372664,1763505039237,-500.0,0.000262,2]
[394372665,1763505039247,-500.0,0.000262,2]
[394372666,1763505039256,-500.0,0.000262,2]
[394372667,1763505039266,-2391.61,0.00026288,2]
[394372668,1763505039276,-166.66,0.00026445,30]
[394372669,1763505039286,-3820.68,0.000265,7]
[394372670,1763505039298,-537.82,0.00026676,2]
[394372671,1763505039307,-1000.0,0.00026748,2]
[394372672,1763505039317,-646.53878068,0.00026748,2]
[394372673,1763505039326,-1016.23614884,0.00026748,2]
[394372674,1763505039335,-479.10650421,0.00026748,2]
[394372675,1763505039345,-569.5879799,0.00026748,2]
[394372676,1763505039355,-1000.0,0.00026827,2]
[394372677,1763505039364,-406.31,0.0002686,2]
[394372678,1763505039377,-166.66,0.00027001,30]
[394372679,1763505039387,-2880.0,0.00027084,2]
[394372680,1763505039397,-1500.0,0.00027296,2]
[394372681,1763505039407,-9999.99,0.00027397,2]
[394372682,1763505039416,-34573.95,0.00027397,2]
[394372683,1763505039426,-150.99,0.00027397,2]
[394372684,1763505039435,-1092.45,0.00027397,2]
[394372685,1763505039444,-150.99,0.00027397,2]
[394372686,1763505039453,-4838.09,0.00027397,2]
[394372687,1763505039463,-999.99,0.00027397,2]
[394372688,1763505039472,-931.7,0.00027397,2]
[394372689,1763505039481,-9999.99,0.00027397,2]
[394372690,1763505039491,-9475.39,0.00027397,2]
[394372691,1763505039500,-329.65,0.00027397,10]
[394372692,1763505039509,-345.28,0.00027397,2]
[394372693,1763505039519,-6370.97,0.000274,2]
[394372694,1763505039529,-162.57,0.00027459,2]
[394372695,1763505039539,-166.66,0.00027558,30]
[394372696,1763505039549,-668.23235542,0.00027559,2]
[394372697,1763505039558,-406.31,0.00027756,2]
[394372698,1763505039568,-1000.0,0.00027762,2]
[394372699,1763505039577,-2000.0,0.00027844,5]
[394372700,1763505039587,-166.66,0.00028115,30]
[394372701,1763505039596,-2524.46659852,0.00028392,5]
[394372702,1763505039606,-406.31,0.00028651,2]
[394372703,1763505039620,-166.66,0.00028672,30]
[394372704,1763505039629,-1000.0,0.00028698,2]
[394372705,1763505039639,-166.66,0.00029228,30]
[394372706,1763505039649,-1859.92670822,0.0002937,2]
[394372707,1763505039658,-406.31,0.00029546,2]
[394372708,1763505039668,-3820.68,0.000297,7]
[394372709,1763505039677,-151.0,0.00029791,2]
[394372710,1763505039688,-151.0,0.00029791,2]
[394372711,1763505039698,-151.0,0.00029791,2]
[394372712,1763505039708,-151.0,0.00029791,2]
[394372713,1763505039718,-151.0,0.00029791,2]
[394372714,1763505039727,-151.0,0.00029791,2]
[394372715,1763505039737,-151.0,0.00029791,2]
[394372716,1763505039747,-151.0,0.00029791,2]
[394372717,1763505039756,-151.0,0.00029791,2]
[394372718,1763505039765,-151.0,0.00029791,2]
[394372719,1763505039775,-151.0,0.00029791,2]
[394372720,1763505039784,-151.0,0.00029791,2]
[394372721,1763505039794,-151.0,0.00029791,2]
[394372722,1763505039804,-151.0,0.00029791,2]
[394372723,1763505039813,-151.0,0.00029791,2]
[394372724,1763505039823,-151.0,0.00029791,2]
[394372725,1763505039832,-151.0,0.00029791,2]
[394372726,1763505039841,-234.54625062,0.0002999,2]
[394372727,1763505039850,-896.38,0.0003,30]
[394372728,1763505039860,-23600.41970575,0.0003,2]
[394372729,1763505039869,-1796.45829375,0.0003,2]
[394372730,1763505039880,-4600.66442657,0.0003,2]
[394372731,1763505039890,-161.13921931,0.0003,2]
[394372732,1763505039899,-200.0,0.0003013,2]
[394372733,1763505039908,-406.31,0.00030442,2]
[394372734,1763505039917,-6370.97,0.000305,2]
[394372735,1763505039927,-11538.53583078,0.0003095,2]
[394372736,1763505039937,-150.99999934,0.00031,2]
[394372737,1763505039947,-668.23235542,0.00031078,2]
[394372738,1763505039956,-406.31,0.00031337,2]
[394372739,1763505039966,-500.0,0.0003172,5]
[394372740,1763505039975,-500.0,0.0003172,5]
[394372741,1763505039985,-500.0,0.0003172,5]
[394372742,1763505039995,-500.0,0.0003172,5]
[394372743,1763505040005,-569.21790656,0.0003172,5]
[394372744,1763505040014,-506.63387772,0.0003172,5]
[394372745,1763505040025,-162.78328124,0.0003172,5]
[394372746,1763505040034,-184.25377407,0.0003172,5]
[394372747,1763505040044,-200.0,0.0003172,5]
[394372748,1763505040054,-500.0,0.0003172,5]
[394372749,1763505040064,-500.0,0.0003172,5]
[394372750,1763505040073,-500.0,0.0003172,5]
[394372751,1763505040083,-500.0,0.0003172,5]
[394372752,1763505040093,-1312.28041013,0.00032,2]
[394372753,1763505040103,-406.31,0.00032232,2]
[394372754,1763505040113,-1000.0,0.00032268,5]
[394372755,1763505040123,-1000.0,0.00032268,5]